[Event "*** Titled Tuesday Blitz"]
[Site "Chess.com"]
[Date "2020.12.01"]
[Round "4"]
[White "Taktikmonster"]
[Black "Gogolev_Artemy"]
[Result "0-1"]
[WhiteElo "2215"]
[BlackElo "2425"]
[TimeControl "180+1"]
[EndTime "10:40:40 PST"]
[Termination "Gogolev_Artemy won on time"]

1. e4 {[%clk 0:03:00.5]} 1... c5 {[%clk 0:02:52.7]} 2. Nf3 {[%clk 0:02:59.6]}
2... Nf6 {[%clk 0:02:50.3]} 3. Nc3 {[%clk 0:02:57.6]} 3... d5 {[%clk 0:02:47.7]}
4. exd5 {[%clk 0:02:57.1]} 4... Nxd5 {[%clk 0:02:47.4]} 5. d4 {[%clk 0:02:57.3]}
5... Nxc3 {[%clk 0:02:47]} 6. bxc3 {[%clk 0:02:58.2]} 6... e6 {[%clk 0:02:42.9]}
7. Bd3 {[%clk 0:02:55]} 7... Nc6 {[%clk 0:02:41.6]} 8. O-O {[%clk 0:02:53.9]}
8... Be7 {[%clk 0:02:40.5]} 9. Rb1 {[%clk 0:02:52.1]} 9... O-O {[%clk
0:02:38.8]} 10. Be3 {[%clk 0:02:34.2]} 10... Qa5 {[%clk 0:02:36.8]} 11. dxc5
{[%clk 0:02:24.6]} 11... Qxc3 {[%clk 0:02:35]} 12. Rb3 {[%clk 0:02:02.1]} 12...
Qa5 {[%clk 0:02:31.9]} 13. Qb1 {[%clk 0:01:34.9]} 13... h6 {[%clk 0:02:10.6]}
14. Be4 {[%clk 0:01:12.6]} 14... Qc7 {[%clk 0:01:51.4]} 15. Bxc6 {[%clk
0:01:04.8]} 15... bxc6 {[%clk 0:01:46.6]} 16. Bd4 {[%clk 0:00:59.2]} 16... Ba6
{[%clk 0:01:41.8]} 17. Re1 {[%clk 0:00:51.4]} 17... Rab8 {[%clk 0:01:33.6]} 18.
Qb2 {[%clk 0:00:46.5]} 18... f6 {[%clk 0:01:20]} 19. Rxe6 {[%clk 0:00:41.4]}
19... Bc4 {[%clk 0:01:19.2]} 20. Rxe7 {[%clk 0:00:37.3]} 20... Rxb3 {[%clk
0:01:00.3]} 21. Rxc7 {[%clk 0:00:36.8]} 21... Rxb2 {[%clk 0:00:59.4]} 22. Bxb2
{[%clk 0:00:37.7]} 22... Rd8 {[%clk 0:00:58.6]} 23. Nd4 {[%clk 0:00:31.3]} 23...
Rb8 {[%clk 0:00:53.6]} 24. Nb3 {[%clk 0:00:25.6]} 24... Re8 {[%clk 0:00:53.2]}
25. h4 {[%clk 0:00:20.5]} 25... Re1+ {[%clk 0:00:53.2]} 26. Kh2 {[%clk
0:00:20.6]} 26... Re2 {[%clk 0:00:53.6]} 27. Rxc6 {[%clk 0:00:19.2]} 27... Rxf2
{[%clk 0:00:52.2]} 28. Rc8+ {[%clk 0:00:18.4]} 28... Kh7 {[%clk 0:00:51.7]} 29.
Rd8 {[%clk 0:00:16]} 29... Rxc2 {[%clk 0:00:50.7]} 30. Bd4 {[%clk 0:00:11.2]}
30... Rxa2 {[%clk 0:00:47.5]} 31. c6 {[%clk 0:00:10]} 31... Bxb3 {[%clk
0:00:45.5]} 32. c7 {[%clk 0:00:10.1]} 32... Be6 {[%clk 0:00:46]} 33. c8=Q {[%clk
0:00:09.3]} 33... Bxc8 {[%clk 0:00:46.5]} 34. Rxc8 {[%clk 0:00:10.2]} 34... a5
{[%clk 0:00:44.4]} 35. Ra8 {[%clk 0:00:10.2]} 35... a4 {[%clk 0:00:44.5]} 36. h5
{[%clk 0:00:08.3]} 36... a3 {[%clk 0:00:37.9]} 37. Bc5 {[%clk 0:00:05.6]} 37...
Rd2 {[%clk 0:00:38.1]} 38. Rxa3 {[%clk 0:00:03.8]} 38... Rd5 {[%clk 0:00:38]}
39. Rc3 {[%clk 0:00:02.1]} 39... Rxh5+ {[%clk 0:00:38.2]} 40. Kg3 {[%clk
0:00:02.6]} 40... Rg5+ {[%clk 0:00:38.8]} 41. Kf3 {[%clk 0:00:02.3]} 41... h5
{[%clk 0:00:39.2]} 42. Be3 {[%clk 0:00:02.2]} 42... Rf5+ {[%clk 0:00:39.6]} 43.
Ke2 {[%clk 0:00:02.3]} 43... Kg6 {[%clk 0:00:40.1]} 44. Rc4 {[%clk 0:00:02.8]}
44... Re5 {[%clk 0:00:40.4]} 45. Rc7 {[%clk 0:00:03]} 45... Re6 {[%clk
0:00:40.7]} 46. Kf3 {[%clk 0:00:03.5]} 46... Ra6 {[%clk 0:00:40.1]} 47. Bc5
{[%clk 0:00:02.5]} 47... Ra8 {[%clk 0:00:38]} 48. Rd7 {[%clk 0:00:01.5]} 48...
Rc8 {[%clk 0:00:37.4]} 49. Bd6 {[%clk 0:00:01.8]} 49... Rg8 {[%clk 0:00:36.6]}
50. g3 {[%clk 0:00:01.8]} 50... Kf5 {[%clk 0:00:36.9]} 51. Kg2 {[%clk
0:00:02.4]} 51... g5 {[%clk 0:00:37.2]} 52. Rc7 {[%clk 0:00:02.1]} 52... Ke6
{[%clk 0:00:37.2]} 53. Bc5 {[%clk 0:00:02.1]} 53... Rb8 {[%clk 0:00:36.9]} 54.
Bf2 {[%clk 0:00:02.1]} 54... Kf5 {[%clk 0:00:36.8]} 55. Rc5+ {[%clk 0:00:02.2]}
55... Kg6 {[%clk 0:00:36.8]} 56. Rc4 {[%clk 0:00:02.6]} 56... Rd8 {[%clk
0:00:36.4]} 57. Kf3 {[%clk 0:00:02.8]} 57... Rd6 {[%clk 0:00:36.8]} 58. Ke4
{[%clk 0:00:02.8]} 58... Re6+ {[%clk 0:00:36.9]} 59. Kf3 {[%clk 0:00:02.9]}
59... Rd6 {[%clk 0:00:37.1]} 60. Be3 {[%clk 0:00:03.4]} 60... Rd3 {[%clk
0:00:36.9]} 61. Rd4 {[%clk 0:00:03.4]} 61... Ra3 {[%clk 0:00:36.5]} 62. Rd6
{[%clk 0:00:03.6]} 62... Kf5 {[%clk 0:00:36.6]} 63. Rd5+ {[%clk 0:00:03.3]}
63... Ke6 {[%clk 0:00:36.3]} 64. Rc5 {[%clk 0:00:03.3]} 64... Kf7 {[%clk
0:00:36.2]} 65. Rc6 {[%clk 0:00:03.5]} 65... Kg6 {[%clk 0:00:36.6]} 66. Ke4
{[%clk 0:00:03.1]} 66... Ra1 {[%clk 0:00:34.7]} 67. Bd4 {[%clk 0:00:03.3]} 67...
Rf1 {[%clk 0:00:35.2]} 68. Ke3 {[%clk 0:00:02.5]} 68... Rf5 {[%clk 0:00:34.7]}
69. Ke4 {[%clk 0:00:02.7]} 69... h4 {[%clk 0:00:35]} 70. gxh4 {[%clk 0:00:02.5]}
70... gxh4 {[%clk 0:00:35.9]} 71. Rc8 {[%clk 0:00:02.3]} 71... Rf1 {[%clk
0:00:34.3]} 72. Rh8 {[%clk 0:00:01.8]} 72... Kg5 {[%clk 0:00:34.2]} 73. Rg8+
{[%clk 0:00:01.2]} 73... Kh5 {[%clk 0:00:34.4]} 74. Rh8+ {[%clk 0:00:02.1]}
74... Kg4 {[%clk 0:00:34.7]} 75. Be3 {[%clk 0:00:01.5]} 75... h3 {[%clk
0:00:34.7]} 76. Rg8+ {[%clk 0:00:01.4]} 76... Kh4 {[%clk 0:00:34.7]} 77. Rh8+
{[%clk 0:00:02.3]} 77... Kg3 {[%clk 0:00:35.1]} 78. Rg8+ {[%clk 0:00:03]} 78...
Kh2 {[%clk 0:00:35.1]} 79. Bf4+ {[%clk 0:00:03.1]} 79... Kh1 {[%clk 0:00:35.5]}
80. Rg6 {[%clk 0:00:03.2]} 80... h2 {[%clk 0:00:33.1]} 81. Bxh2 {[%clk
0:00:02.9]} 81... Kxh2 {[%clk 0:00:34]} 82. Kd5 {[%clk 0:00:03.1]} 82... Kh3
{[%clk 0:00:34.1]} 83. Ke6 {[%clk 0:00:03.4]} 83... f5 {[%clk 0:00:34.5]} 84.
Rf6 {[%clk 0:00:02.8]} 84... f4 {[%clk 0:00:34.4]} 85. Ke5 {[%clk 0:00:03.1]}
85... Kg3 {[%clk 0:00:32.9]} 86. Rg6+ {[%clk 0:00:03.4]} 86... Kf3 {[%clk
0:00:32.4]} 87. Rh6 {[%clk 0:00:03.5]} 87... Re1+ {[%clk 0:00:32.6]} 88. Kf5
{[%clk 0:00:03.2]} 88... Rg1 {[%clk 0:00:29.2]} 89. Rh3+ {[%clk 0:00:02.8]}
89... Kg2 {[%clk 0:00:25.3]} 0-1

[Event "*** Titled Tuesday Blitz"]
[Site "Chess.com"]
[Date "2020.12.01"]
[Round "4"]
[White "RamyresCoelho"]
[Black "GodDMuhammad"]
[Result "1/2-1/2"]
[WhiteElo "2094"]
[BlackElo "2293"]
[TimeControl "180+1"]
[EndTime "10:40:44 PST"]
[Termination "Game drawn - insufficient material"]

1. e4 {[%clk 0:02:59.9]} 1... c6 {[%clk 0:02:57.8]} 2. d4 {[%clk 0:02:59.1]}
2... d5 {[%clk 0:02:57.6]} 3. Nc3 {[%clk 0:02:59.5]} 3... dxe4 {[%clk
0:02:53.2]} 4. Nxe4 {[%clk 0:03:00.4]} 4... Bf5 {[%clk 0:02:53.1]} 5. Ng3 {[%clk
0:03:00.3]} 5... Bg6 {[%clk 0:02:52.5]} 6. Nf3 {[%clk 0:03:00.1]} 6... Nd7
{[%clk 0:02:52.9]} 7. h4 {[%clk 0:03:00.1]} 7... h6 {[%clk 0:02:53.4]} 8. h5
{[%clk 0:03:00.6]} 8... Bh7 {[%clk 0:02:53.9]} 9. Bd3 {[%clk 0:03:01.4]} 9...
Bxd3 {[%clk 0:02:54.4]} 10. Qxd3 {[%clk 0:03:02.3]} 10... Qc7 {[%clk 0:02:54.9]}
11. Bd2 {[%clk 0:03:02.9]} 11... e6 {[%clk 0:02:54.5]} 12. O-O-O {[%clk
0:03:03.1]} 12... Bd6 {[%clk 0:02:54.6]} 13. Ne4 {[%clk 0:03:03]} 13... Bf4
{[%clk 0:02:55.1]} 14. g3 {[%clk 0:03:02]} 14... Bxd2+ {[%clk 0:02:54.3]} 15.
Rxd2 {[%clk 0:03:01.7]} 15... Ngf6 {[%clk 0:02:55.2]} 16. Nxf6+ {[%clk
0:03:01.6]} 16... Nxf6 {[%clk 0:02:56.1]} 17. c4 {[%clk 0:02:57.9]} 17... O-O-O
{[%clk 0:02:56.1]} 18. Kb1 {[%clk 0:02:56.6]} 18... c5 {[%clk 0:02:51.6]} 19.
Qc2 {[%clk 0:02:46.5]} 19... cxd4 {[%clk 0:02:49.2]} 20. Nxd4 {[%clk 0:02:44.5]}
20... a6 {[%clk 0:02:49.6]} 21. c5 {[%clk 0:02:35.1]} 21... Rd5 {[%clk
0:02:46.1]} 22. c6 {[%clk 0:02:31.9]} 22... b6 {[%clk 0:02:38.6]} 23. Rc1 {[%clk
0:02:10.3]} 23... Rhd8 {[%clk 0:02:35.6]} 24. Rcd1 {[%clk 0:02:06]} 24... Nxh5
{[%clk 0:02:26.7]} 25. Qe4 {[%clk 0:01:46.5]} 25... Nf6 {[%clk 0:02:25.5]} 26.
Qe3 {[%clk 0:01:41.3]} 26... Kb8 {[%clk 0:02:18.6]} 27. f4 {[%clk 0:01:38.3]}
27... Rc5 {[%clk 0:02:05.3]} 28. b4 {[%clk 0:01:33.9]} 28... Rc4 {[%clk
0:02:01.9]} 29. Qb3 {[%clk 0:01:10.2]} 29... b5 {[%clk 0:01:48.4]} 30. Nxb5
{[%clk 0:01:07.2]} 30... Rxd2 {[%clk 0:01:28.7]} 31. Nxc7 {[%clk 0:01:02.4]}
31... Rxd1+ {[%clk 0:01:24.5]} 32. Qxd1 {[%clk 0:01:02.1]} 32... Rxb4+ {[%clk
0:01:18.2]} 33. Ka1 {[%clk 0:01:01.9]} 33... Kxc7 {[%clk 0:01:17.8]} 34. Qd3
{[%clk 0:00:53.2]} 34... Rb6 {[%clk 0:01:12.2]} 35. Qd4 {[%clk 0:00:49.3]} 35...
Kxc6 {[%clk 0:01:09.8]} 36. a4 {[%clk 0:00:45.8]} 36... Nd5 {[%clk 0:01:03.4]}
37. Qxg7 {[%clk 0:00:41.7]} 37... Rb4 {[%clk 0:00:59.3]} 38. Qxf7 {[%clk
0:00:38.3]} 38... Rxa4+ {[%clk 0:00:59.4]} 39. Kb2 {[%clk 0:00:37.5]} 39... Rb4+
{[%clk 0:01:00.3]} 40. Kc2 {[%clk 0:00:36.9]} 40... Kd6 {[%clk 0:00:40.3]} 41.
Qf8+ {[%clk 0:00:35.1]} 41... Kc6 {[%clk 0:00:39.4]} 42. Qxh6 {[%clk 0:00:32.5]}
42... Re4 {[%clk 0:00:31.9]} 43. Qf8 {[%clk 0:00:28.7]} 43... Re2+ {[%clk
0:00:24.4]} 44. Kd3 {[%clk 0:00:22.1]} 44... Re3+ {[%clk 0:00:24.1]} 45. Kd2
{[%clk 0:00:21]} 45... Rxg3 {[%clk 0:00:24.2]} 46. Qe8+ {[%clk 0:00:18.3]} 46...
Kd6 {[%clk 0:00:22.4]} 47. Qd8+ {[%clk 0:00:18]} 47... Kc5 {[%clk 0:00:20.6]}
48. Qa5+ {[%clk 0:00:16.7]} 48... Kd4 {[%clk 0:00:19.9]} 49. Qa4+ {[%clk
0:00:14.2]} 49... Kc5 {[%clk 0:00:19.7]} 50. Qxa6 {[%clk 0:00:12.5]} 50... Rg2+
{[%clk 0:00:19.9]} 51. Ke1 {[%clk 0:00:11.8]} 51... Rg4 {[%clk 0:00:16.3]} 52.
Qxe6 {[%clk 0:00:09.3]} 52... Rxf4 {[%clk 0:00:16.1]} 53. Qc8+ {[%clk
0:00:08.5]} 53... Kd4 {[%clk 0:00:15.7]} 54. Qh8+ {[%clk 0:00:08]} 54... Nf6
{[%clk 0:00:14.3]} 55. Qd8+ {[%clk 0:00:07.5]} 55... Ke4 {[%clk 0:00:14.3]} 56.
Qa8+ {[%clk 0:00:05.7]} 56... Kf5 {[%clk 0:00:14]} 57. Qd8 {[%clk 0:00:06.6]}
57... Re4+ {[%clk 0:00:13.7]} 58. Kf1 {[%clk 0:00:06.5]} 58... Rf4+ {[%clk
0:00:13.3]} 59. Kg2 {[%clk 0:00:06.5]} 59... Ng4 {[%clk 0:00:12.4]} 60. Qf8+
{[%clk 0:00:06.4]} 60... Ke4 {[%clk 0:00:12.1]} 61. Qb4+ {[%clk 0:00:06]} 61...
Kf5 {[%clk 0:00:11.1]} 62. Qe7 {[%clk 0:00:06.9]} 62... Ne5 {[%clk 0:00:11.8]}
63. Qf8+ {[%clk 0:00:06.6]} 63... Ke4 {[%clk 0:00:12.7]} 64. Qa8+ {[%clk
0:00:06.5]} 64... Ke3 {[%clk 0:00:12.1]} 65. Qb8 {[%clk 0:00:07.4]} 65... Rf2+
{[%clk 0:00:10.8]} 66. Kg3 {[%clk 0:00:07.4]} 66... Rf3+ {[%clk 0:00:11]} 67.
Kh4 {[%clk 0:00:07.7]} 67... Kf4 {[%clk 0:00:09.7]} 68. Qg8 {[%clk 0:00:06.8]}
68... Re3 {[%clk 0:00:08]} 69. Qf8+ {[%clk 0:00:06.7]} 69... Ke4 {[%clk
0:00:07.7]} 70. Kg5 {[%clk 0:00:06.4]} 70... Rg3+ {[%clk 0:00:06.4]} 71. Kh5
{[%clk 0:00:04.4]} 71... Rh3+ {[%clk 0:00:05.3]} 72. Kg5 {[%clk 0:00:03.5]}
72... Nf3+ {[%clk 0:00:04.7]} 73. Kg4 {[%clk 0:00:03.1]} 73... Rh4+ {[%clk
0:00:04.6]} 74. Kg3 {[%clk 0:00:03.5]} 74... Ng5 {[%clk 0:00:03.2]} 75. Qe8+
{[%clk 0:00:03.1]} 75... Kf5 {[%clk 0:00:02.6]} 76. Qa8 {[%clk 0:00:04]} 76...
Rg4+ {[%clk 0:00:02]} 77. Kf2 {[%clk 0:00:04.5]} 77... Rf4+ {[%clk 0:00:02]} 78.
Ke2 {[%clk 0:00:05]} 78... Ne4 {[%clk 0:00:02.9]} 79. Qf8+ {[%clk 0:00:04.9]}
79... Kg4 {[%clk 0:00:03.2]} 80. Qb8 {[%clk 0:00:05.8]} 80... Rf5 {[%clk
0:00:04.1]} 81. Qg8+ {[%clk 0:00:05.9]} 81... Ng5 {[%clk 0:00:05]} 82. Qb8
{[%clk 0:00:06.8]} 82... Rf4 {[%clk 0:00:05.3]} 83. Qe8 {[%clk 0:00:05.6]} 83...
Re4+ {[%clk 0:00:06.2]} 84. Qxe4+ {[%clk 0:00:05.4]} 84... Nxe4 {[%clk
0:00:07.1]} 1/2-1/2

[Event "*** Titled Tuesday Blitz"]
[Site "Chess.com"]
[Date "2020.12.01"]
[Round "4"]
[White "GMStefanova"]
[Black "eCztery"]
[Result "1/2-1/2"]
[WhiteElo "2520"]
[BlackElo "2324"]
[TimeControl "180+1"]
[EndTime "10:40:50 PST"]
[Termination "Game drawn by repetition"]

1. d4 {[%clk 0:03:00.9]} 1... Nf6 {[%clk 0:02:57.8]} 2. Bg5 {[%clk 0:02:59]}
2... Ng8 {[%clk 0:02:53.5]} 3. e4 {[%clk 0:02:55]} 3... c6 {[%clk 0:02:48.6]} 4.
Nc3 {[%clk 0:02:51.2]} 4... Qa5 {[%clk 0:02:45.5]} 5. Nf3 {[%clk 0:02:46.3]}
5... Nf6 {[%clk 0:02:43]} 6. Bd2 {[%clk 0:02:39.8]} 6... Qc7 {[%clk 0:02:26.6]}
7. e5 {[%clk 0:02:37.6]} 7... Nd5 {[%clk 0:02:26.5]} 8. Ne4 {[%clk 0:02:33.4]}
8... g6 {[%clk 0:02:22.5]} 9. c4 {[%clk 0:02:31.9]} 9... Nb6 {[%clk 0:02:22.6]}
10. Bc3 {[%clk 0:02:30]} 10... Bg7 {[%clk 0:02:22.1]} 11. d5 {[%clk 0:02:27.5]}
11... cxd5 {[%clk 0:02:15.3]} 12. cxd5 {[%clk 0:02:26.6]} 12... O-O {[%clk
0:02:15.2]} 13. Rc1 {[%clk 0:02:21.6]} 13... Qd8 {[%clk 0:02:09.9]} 14. Be2
{[%clk 0:02:16]} 14... d6 {[%clk 0:02:09.2]} 15. exd6 {[%clk 0:02:14.6]} 15...
Bxc3+ {[%clk 0:02:05.9]} 16. Rxc3 {[%clk 0:02:12.4]} 16... exd6 {[%clk
0:02:06.8]} 17. Qd4 {[%clk 0:02:07.5]} 17... f5 {[%clk 0:02:01.7]} 18. Neg5
{[%clk 0:02:04.9]} 18... Qf6 {[%clk 0:01:57.5]} 19. Qxf6 {[%clk 0:01:49.1]}
19... Rxf6 {[%clk 0:01:58.4]} 20. Nd4 {[%clk 0:01:47.8]} 20... Na6 {[%clk
0:01:52.4]} 21. Bf3 {[%clk 0:01:28.1]} 21... h6 {[%clk 0:01:31.9]} 22. Nge6
{[%clk 0:01:21]} 22... Bxe6 {[%clk 0:01:32.1]} 23. dxe6 {[%clk 0:01:20]} 23...
Nc5 {[%clk 0:01:26.3]} 24. O-O {[%clk 0:01:15.1]} 24... Nxe6 {[%clk 0:01:23.4]}
25. Nxe6 {[%clk 0:01:10.9]} 25... Rxe6 {[%clk 0:01:24.2]} 26. Bxb7 {[%clk
0:01:10.7]} 26... Rae8 {[%clk 0:01:20.8]} 27. Bc6 {[%clk 0:01:07]} 27... R8e7
{[%clk 0:01:15.7]} 28. Rd3 {[%clk 0:00:59.4]} 28... Kg7 {[%clk 0:01:15.2]} 29.
g3 {[%clk 0:00:58.4]} 29... Rc7 {[%clk 0:01:06.1]} 30. Bf3 {[%clk 0:00:49.1]}
30... Nc4 {[%clk 0:01:06.1]} 31. Bd5 {[%clk 0:00:46.3]} 31... Ree7 {[%clk
0:00:58.9]} 32. b3 {[%clk 0:00:43.1]} 32... Ne5 {[%clk 0:00:57.1]} 33. Rd2
{[%clk 0:00:43.2]} 33... Kf6 {[%clk 0:00:48]} 34. Kg2 {[%clk 0:00:42.5]} 34...
Rc5 {[%clk 0:00:45.4]} 35. Rfd1 {[%clk 0:00:41.1]} 35... Rd7 {[%clk 0:00:39.1]}
36. h3 {[%clk 0:00:40.5]} 36... a5 {[%clk 0:00:38.1]} 37. f4 {[%clk 0:00:40]}
37... Nc6 {[%clk 0:00:36.2]} 38. Bc4 {[%clk 0:00:35]} 38... Ke7 {[%clk
0:00:16.9]} 39. Re1+ {[%clk 0:00:34.4]} 39... Kd8 {[%clk 0:00:17.4]} 40. Re6
{[%clk 0:00:34.1]} 40... d5 {[%clk 0:00:16.4]} 41. Bd3 {[%clk 0:00:32.9]} 41...
Nb4 {[%clk 0:00:15.6]} 42. Rxg6 {[%clk 0:00:28.9]} 42... Nxd3 {[%clk 0:00:15.7]}
43. Rxd3 {[%clk 0:00:28.9]} 43... Rc2+ {[%clk 0:00:16.6]} 44. Kf3 {[%clk
0:00:28.7]} 44... Rxa2 {[%clk 0:00:17.5]} 45. Rxh6 {[%clk 0:00:28.2]} 45... Ra3
{[%clk 0:00:17.6]} 46. Rf6 {[%clk 0:00:26.5]} 46... a4 {[%clk 0:00:18]} 47. Rxf5
{[%clk 0:00:25.3]} 47... axb3 {[%clk 0:00:15.9]} 48. Rfxd5 {[%clk 0:00:22.3]}
48... Rxd5 {[%clk 0:00:13.7]} 49. Rxd5+ {[%clk 0:00:22.2]} 49... Kc7 {[%clk
0:00:14.6]} 50. Rb5 {[%clk 0:00:20.3]} 50... Kc6 {[%clk 0:00:15.5]} 51. Rb8
{[%clk 0:00:20.1]} 51... Kc5 {[%clk 0:00:14.4]} 52. Kg4 {[%clk 0:00:19.6]} 52...
Kc4 {[%clk 0:00:15.3]} 53. h4 {[%clk 0:00:19.7]} 53... Ra4 {[%clk 0:00:14.3]}
54. h5 {[%clk 0:00:16.6]} 54... Rb4 {[%clk 0:00:14.6]} 55. Rc8+ {[%clk
0:00:16.8]} 55... Kd3 {[%clk 0:00:15]} 56. Rc1 {[%clk 0:00:16.6]} 56... b2
{[%clk 0:00:14.7]} 57. Rh1 {[%clk 0:00:16.4]} 57... Kc2 {[%clk 0:00:15.6]} 58.
h6 {[%clk 0:00:16]} 58... Rd4 {[%clk 0:00:16]} 59. h7 {[%clk 0:00:14]} 59... Rd1
{[%clk 0:00:13.1]} 60. Rxd1 {[%clk 0:00:13.5]} 60... Kxd1 {[%clk 0:00:14]} 61.
h8=Q {[%clk 0:00:12.3]} 61... b1=Q {[%clk 0:00:14.9]} 62. Qd4+ {[%clk 0:00:12]}
62... Ke1 {[%clk 0:00:14.3]} 63. Qe3+ {[%clk 0:00:11.4]} 63... Kf1 {[%clk
0:00:14.4]} 64. Qf3+ {[%clk 0:00:10.7]} 64... Kg1 {[%clk 0:00:14.8]} 65. f5
{[%clk 0:00:10.5]} 65... Qb4+ {[%clk 0:00:11.8]} 66. Kg5 {[%clk 0:00:09.5]}
66... Qf8 {[%clk 0:00:12.7]} 67. f6 {[%clk 0:00:08.7]} 67... Qg8+ {[%clk
0:00:12.2]} 68. Kf5 {[%clk 0:00:08.4]} 68... Qc8+ {[%clk 0:00:12]} 69. Kf4
{[%clk 0:00:06.8]} 69... Qc4+ {[%clk 0:00:11.1]} 70. Qe4 {[%clk 0:00:05.3]}
70... Qc7+ {[%clk 0:00:11.7]} 71. Qe5 {[%clk 0:00:05.4]} 71... Qc4+ {[%clk
0:00:11.9]} 72. Kf5 {[%clk 0:00:05.3]} 72... Qd3+ {[%clk 0:00:11.3]} 73. Ke6
{[%clk 0:00:05.6]} 73... Qa6+ {[%clk 0:00:09.2]} 74. Kf7 {[%clk 0:00:05]} 74...
Qb7+ {[%clk 0:00:08.1]} 75. Kg8 {[%clk 0:00:03.8]} 75... Qc8+ {[%clk 0:00:07.6]}
76. Kg7 {[%clk 0:00:03.9]} 76... Qg4+ {[%clk 0:00:08]} 77. Kf8 {[%clk
0:00:03.5]} 77... Qc8+ {[%clk 0:00:08]} 78. Kf7 {[%clk 0:00:03.6]} 78... Qd7+
{[%clk 0:00:08.2]} 79. Qe7 {[%clk 0:00:03.8]} 79... Qd5+ {[%clk 0:00:08.3]} 80.
Kf8 {[%clk 0:00:04.1]} 80... Qa8+ {[%clk 0:00:08]} 81. Kg7 {[%clk 0:00:03.6]}
81... Qf3 {[%clk 0:00:04.2]} 82. Qe5 {[%clk 0:00:03.6]} 82... Qg4+ {[%clk
0:00:04.1]} 83. Kf8 {[%clk 0:00:03.8]} 83... Qd7 {[%clk 0:00:05]} 84. Kg8 {[%clk
0:00:03.4]} 84... Qg4+ {[%clk 0:00:05]} 85. Kf8 {[%clk 0:00:03.2]} 1/2-1/2